bitfinex/quotes_ETHUSD_20241212
["timestamp","ask_amount","ask_price","bid_price","bid_amount"]
[1734026489153,0.7796,3957.1,3955.3,0.809]
[1734026489406,0.7796,3957.1,3955.4,0.57527726]
[1734026489573,0.7796,3957.1,3955.4,1.16906795]
[1734026489987,0.7796,3957.1,3955.4,1.42979427]
[1734026490310,0.7796,3957.1,3955.4,1.09978119]
[1734026490805,0.7796,3957.1,3955.4,1.40451701]
[1734026491099,0.7796,3957.1,3955.7,0.55]
[1734026491315,0.7796,3957.1,3956.7,3.0]
[1734026491488,0.8039,3958.7,3956.8,0.55]
[1734026491686,0.8039,3958.6,3956.6,0.55]
[1734026494603,0.8039,3958.6,3956.6,0.67526935]
[1734026495362,0.8039,3958.6,3955.8,0.59379069]
[1734026495363,0.791,3958.2,3955.8,0.821]
[1734026495672,0.791,3958.2,3955.9,0.55]
[1734026496460,0.791,3958.2,3955.9,0.83905487]
[1734026496701,0.791,3958.2,3956.0,0.28905487]
[1734026496905,0.791,3958.2,3956.1,0.57526801]
[1734026497065,0.791,3958.2,3956.3,0.55]
[1734026497260,0.791,3958.2,3956.5,0.55]
[1734026497492,0.791,3958.2,3956.5,0.83905487]
[1734026498966,0.791,3958.2,3956.5,0.86432237]
[1734026499167,0.791,3958.2,3956.6,0.85939561]
[1734026499399,0.791,3958.2,3956.7,0.55]
[1734026499595,0.791,3958.2,3956.5,0.83905487]
[1734026499911,0.791,3958.2,3956.7,0.55]
[1734026500112,0.791,3958.2,3956.6,0.55]
[1734026502226,0.791,3958.2,3955.9,7.49480829]
[1734026502394,3.0,3958.3,3956.0,0.86066836]
[1734026502395,0.7738,3957.9,3956.0,0.86066836]
[1734026502588,0.7738,3957.9,3955.9,0.1240574]
[1734026502788,0.7738,3957.9,3955.4,1.04480829]
[1734026503033,0.7738,3957.9,3955.5,0.86078886]
[1734026503034,0.7738,3957.5,3955.5,0.86078886]
[1734026503234,0.7738,3957.5,3955.2,0.28905487]
[1734026503235,0.7738,3957.5,3955.2,1.33386316]
[1734026503465,0.7738,3957.3,3955.3,2.15304875]
[1734026503594,0.7738,3957.3,3955.4,0.8612195]
[1734026503788,0.7738,3957.3,3955.2,0.59379069]
[1734026504093,0.7738,3957.3,3955.7,1.04480829]
[1734026504288,0.7738,3957.3,3955.9,0.55]
[1734026504493,0.7738,3957.3,3955.8,0.55]
[1734026504734,0.7738,3957.3,3955.6,0.55]
[1734026504947,0.7738,3957.3,3955.5,1.81060829]
[1734026504948,0.7738,3957.3,3955.9,0.55]
[1734026505092,0.7738,3957.3,3956.1,0.55]
[1734026505838,0.7738,3957.3,3956.0,0.55]
[1734026506065,0.7738,3957.3,3956.2,0.55]
[1734026506362,0.7738,3957.3,3956.1,0.55]
[1734026506562,0.7738,3957.3,3956.3,0.55]
[1734026507265,0.7738,3957.3,3956.1,0.55]
[1734026507466,0.7738,3957.3,3956.3,0.55]
[1734026507626,0.7738,3957.3,3956.1,0.55]
[1734026507829,0.7738,3957.3,3956.3,0.55]
[1734026508062,0.7738,3957.3,3956.2,0.55]
[1734026508365,0.7738,3957.3,3956.5,0.55]
[1734026508960,0.7738,3957.3,3956.2,0.55]
[1734026509273,0.7738,3957.3,3956.0,0.55]
[1734026509479,0.7738,3957.3,3955.8,0.41803062]
[1734026509679,0.7738,3957.3,3955.8,0.12897575]
[1734026510873,0.7738,3957.3,3955.2,0.55]
[1734026511079,0.7738,3957.3,3955.4,0.55]
[1734026511373,0.7738,3957.3,3955.3,0.55]
[1734026511679,0.7738,3957.3,3955.2,0.28905487]
[1734026512039,0.7738,3957.3,3955.3,0.86337709]
[1734026512378,0.7738,3957.3,3955.6,0.12594756]
[1734026512673,0.7738,3957.3,3955.4,0.28905487]
[1734026512892,0.7738,3957.3,3955.5,0.55]
[1734026514578,0.7738,3957.3,3955.1,1.04480829]
[1734026514779,0.7738,3957.3,3955.3,0.55]
[1734026514979,0.7738,3957.3,3955.0,1.04480829]
[1734026515195,0.7738,3957.3,3955.1,1.29490197]
[1734026515395,0.7738,3957.3,3955.2,2.70816995]
[1734026515719,0.7738,3957.3,3955.2,0.55]
[1734026517104,0.7738,3957.3,3955.0,0.55]
[1734026517325,0.7953,3957.1,3955.0,0.55]
[1734026518406,0.7953,3957.1,3954.9,0.55]
[1734026518783,0.7953,3957.1,3954.8,0.28905487]
[1734026518983,0.7536,3956.8,3954.5,1.04480829]
[1734026519185,0.7536,3956.8,3954.7,3.0]
[1734026519499,0.7536,3956.8,3954.6,0.55]
[1734026520125,0.7536,3956.8,3954.7,2.75364849]
[1734026520340,0.7536,3956.8,3954.8,2.70961997]
[1734026520554,0.7536,3956.8,3955.0,0.55]
[1734026520999,0.7536,3956.8,3954.9,0.55]
[1734026523920,0.7536,3956.8,3954.8,0.55]
[1734026524483,0.7536,3956.8,3955.0,0.55]
[1734026524855,0.7536,3956.8,3954.8,0.55]
[1734026525038,0.7536,3956.8,3955.0,0.55]
[1734026525862,0.7536,3956.8,3954.9,0.55]
[1734026526732,0.85120008,3960.3,3960.0,48.63611032]
[1734026526951,0.85120008,3960.3,3955.7,0.25]
[1734026526952,2.52633,3958.4,3955.7,0.25]
[1734026527166,3.23190764,3957.5,3955.9,0.25]
[1734026528371,3.23190764,3957.5,3955.7,0.5]
[1734026528775,3.23190764,3957.5,3955.7,0.25]
[1734026529077,3.0,3957.4,3955.8,0.07888476]
[1734026529219,3.0,3956.8,3955.8,0.07888476]
[1734026529420,2.62796738,3956.5,3955.0,0.25]
[1734026529640,2.62796738,3956.5,3955.1,0.07889689]
[1734026529824,0.7646,3956.3,3954.8,0.5]
[1734026530136,0.7646,3956.3,3955.1,0.25]
[1734026531364,0.7646,3956.3,3954.8,0.25]
[1734026531526,0.7646,3956.3,3954.9,0.07890197]
[1734026531727,0.7646,3956.3,3955.0,0.07890379]
[1734026531928,0.7646,3956.3,3954.7,0.25]
[1734026532177,0.7646,3956.3,3954.8,0.07890342]
[1734026532373,0.7646,3956.3,3954.9,0.32890342]
[1734026532529,0.7646,3956.3,3955.0,0.07890342]
[1734026532729,0.7646,3956.3,3954.9,0.25]
[1734026532984,0.7646,3956.3,3955.0,0.07890307]
[1734026533164,0.7646,3956.3,3955.1,0.07890307]
[1734026533326,0.7646,3956.3,3955.2,0.07890307]
[1734026533679,0.7646,3956.3,3954.9,0.25]
[1734026533826,0.7646,3956.3,3955.0,0.26228401]
[1734026534026,0.7646,3956.3,3955.1,0.07889769]
[1734026534653,0.7646,3956.3,3954.9,0.25]
[1734026534834,0.7646,3956.3,3954.8,0.25]
[1734026534835,2.62796738,3956.2,3955.0,0.07890164]
[1734026535057,0.799,3956.0,3954.3,0.5]
[1734026535378,0.799,3956.0,3954.4,0.07890909]
[1734026535691,0.799,3956.0,3954.5,0.07890909]
[1734026535893,0.799,3956.0,3954.6,0.07890909]
[1734026536100,0.799,3956.0,3954.6,0.25]
[1734026536305,0.799,3956.0,3954.4,0.25]
[1734026536451,0.799,3956.0,3954.5,0.07891008]
[1734026536650,0.799,3956.0,3954.4,0.25]
[1734026537102,0.799,3956.0,3954.6,0.25]
[1734026537402,0.799,3956.0,3955.0,0.25]
[1734026537561,0.799,3956.0,3955.1,0.25]
[1734026537747,0.799,3956.0,3955.3,0.25]
[1734026538713,0.799,3956.0,3955.4,0.0788937]
[1734026538857,0.799,3956.0,3955.5,0.0788937]
[1734026539061,0.799,3956.0,3955.5,0.25]
[1734026539417,3.0,3957.7,3955.6,0.0788912]
[1734026539551,3.0,3957.7,3955.7,0.0788912]
[1734026539918,3.0,3957.7,3955.5,0.25]
[1734026540134,3.0,3957.7,3955.8,0.07888888]
[1734026540433,3.0,3957.7,3955.3,0.5]
[1734026540434,0.55,3957.6,3955.5,0.25]
[1734026540726,3.55,3957.3,3955.6,0.0788896]
[1734026540889,3.55,3957.3,3955.7,0.0788896]
[1734026541078,3.0,3956.9,3955.0,0.25]
[1734026541279,3.0,3956.9,3955.1,0.07889827]
[1734026541502,3.0,3956.9,3955.2,0.07889827]
[1734026541503,0.55,3956.8,3955.2,0.07889827]
[1734026541705,0.55,3956.8,3955.0,0.25]
[1734026542023,0.55,3956.8,3955.1,0.07890083]
[1734026542249,4.04072,3957.7,3955.0,0.25]
[1734026542250,0.1245,3956.7,3955.5,0.25]
[1734026542531,0.1245,3956.7,3955.6,0.07890083]
[1734026542736,0.1245,3956.7,3955.7,0.07890083]
[1734026542880,0.1245,3956.7,3955.8,0.07890083]
[1734026543076,0.1245,3956.7,3955.5,0.25]
[1734026543276,0.1245,3956.7,3955.9,0.0788882]
[1734026543679,0.1245,3956.7,3956.0,0.0788882]
[1734026544127,0.1245,3956.7,3955.5,0.25]
[1734026544430,0.1245,3956.7,3955.6,0.0788885]
[1734026544581,0.1245,3956.7,3955.7,0.0788885]
[1734026544781,0.1245,3956.7,3955.8,0.0788885]
[1734026544980,0.1245,3956.7,3955.9,0.0788885]
[1734026545184,0.1245,3956.7,3955.5,0.25]
[1734026545427,0.1245,3956.7,3955.6,0.07888819]
[1734026545728,0.1245,3956.7,3955.7,0.07888819]
[1734026545929,0.1245,3956.7,3955.8,0.07888819]
[1734026546239,0.1245,3956.7,3955.9,0.07888861]
[1734026546374,0.1245,3956.7,3955.5,0.25]
[1734026546580,0.1245,3956.7,3955.6,0.07888861]
[1734026547150,0.1245,3956.7,3955.8,0.5]
[1734026547278,0.1245,3956.7,3955.9,0.94443899]
[1734026547618,0.1245,3956.7,3956.0,0.07888861]
[1734026547821,0.1245,3956.7,3956.1,0.07888861]
[1734026547990,0.1245,3956.7,3955.8,0.5]
[1734026547991,0.1245,3956.7,3956.2,0.07888861]
[1734026548319,0.1245,3956.7,3955.8,0.5]
[1734026548503,0.1245,3956.7,3955.9,2.55476103]
[1734026548680,0.1245,3956.7,3956.0,0.07888161]
[1734026548881,0.1245,3956.7,3956.1,0.07888161]
[1734026549080,0.1245,3956.7,3956.2,0.07888161]
[1734026549308,0.1245,3956.7,3955.9,0.31120207]
[1734026549622,0.1245,3956.7,3956.0,0.94452756]
[1734026549822,0.1245,3956.7,3956.0,0.07888309]
[1734026550121,0.1245,3956.7,3956.1,0.94438491]
[1734026550418,0.1245,3956.7,3956.2,0.07888309]
[1734026550610,0.1245,3956.7,3956.3,0.07888153]
[1734026550915,0.1245,3956.7,3956.1,0.86550182]
[1734026551115,0.1245,3956.7,3956.2,2.48389042]
[1734026551350,0.1245,3956.7,3956.3,0.94447051]
[1734026551479,0.1245,3956.7,3956.4,0.07887791]
[1734026551823,0.1245,3956.7,3956.2,0.24103101]
[1734026551994,0.1245,3956.7,3956.3,0.07887798]
[1734026552328,0.1245,3956.7,3956.2,0.24103101]
[1734026552483,0.1245,3956.7,3956.4,0.07887815]
[1734026552906,0.1245,3956.7,3956.3,0.2779777]
[1734026553854,0.1245,3956.7,3956.4,0.9452053]
[1734026554007,0.1245,3956.7,3956.3,0.2779777]
[1734026554316,0.1245,3956.7,3956.4,0.86664505]
[1734026554523,0.1245,3956.7,3956.1,0.86550182]
[1734026557101,0.3929,3956.7,3956.1,0.86550182]
[1734026557336,0.3929,3956.5,3956.1,0.86550182]
[1734026561138,6.02086738,3956.2,3956.1,0.86550182]
[1734026562409,0.3929,3956.2,3956.1,0.86550182]
[1734026562608,0.3929,3956.2,3954.8,1.04480829]
[1734026562842,0.3929,3956.2,3954.9,2.24901145]
[1734026563044,0.3929,3956.2,3955.0,2.17010305]
[1734026563345,0.3929,3956.2,3954.8,1.04480829]
[1734026563549,0.3929,3956.2,3954.9,2.24856968]
[1734026563748,0.3929,3956.2,3955.0,0.86786424]
[1734026564046,0.3929,3956.2,3954.7,2.16876061]
[1734026564047,0.3929,3956.0,3954.7,2.16876061]
[1734026564841,0.3929,3956.0,3954.8,0.86778265]
[1734026565045,0.3929,3956.0,3954.7,2.16876061]
[1734026567148,0.3929,3956.0,3954.8,0.86764194]
[1734026567317,0.3929,3956.0,3954.7,2.16876061]
[1734026567518,0.3929,3956.0,3954.8,0.86763972]
[1734026568550,0.3929,3956.0,3954.7,2.16876061]
[1734026569010,0.3929,3956.0,3954.8,0.86758519]
[1734026569352,0.3929,3956.0,3954.7,2.16876061]
[1734026569645,0.3929,3956.0,3954.8,2.24761399]
[1734026569864,0.3929,3956.0,3954.7,2.16876061]
[1734026570008,0.3929,3956.0,3954.8,0.86747143]
[1734026570363,0.3929,3956.0,3954.7,2.16876061]
[1734026572868,0.3929,3956.0,3954.3,0.25]
[1734026573510,0.3929,3956.0,3954.4,0.86740882]
[1734026574405,0.3929,3956.0,3954.3,0.25]
[1734026574745,3.0,3955.7,3954.0,1.04480829]
[1734026574945,3.0,3955.7,3954.1,0.86739571]
[1734026575162,0.3929,3955.6,3954.1,0.86739571]
[1734026575388,0.3929,3955.6,3954.2,0.86739571]
[1734026575595,0.3929,3955.6,3953.9,1.29480829]
[1734026575905,0.3929,3955.6,3954.0,3.29229106]
[1734026576043,2.62796738,3955.4,3954.1,2.24748277]
[1734026576244,2.62796738,3955.4,3953.6,2.08966092]
[1734026576245,0.3929,3955.2,3953.6,0.25]
[1734026576490,0.3929,3955.2,3953.8,0.25]
[1734026576644,0.3929,3955.2,3953.9,0.86758509]
[1734026577593,0.3929,3955.2,3953.8,0.25]
[1734026577863,0.3929,3955.2,3953.0,2.622744]
[1734026578016,2.905,3951.7,3950.5,4.34011576]
[1734026578167,0.25,3951.8,3947.9,4.34011576]
[1734026578168,4.169,3951.3,3947.9,4.34011576]
[1734026578365,2.11274186,3951.9,3949.2,1.39830143]
[1734026578597,3.0,3951.8,3949.3,0.13983014]
[1734026578832,0.8387,3951.2,3949.3,1.00719998]
[1734026578986,3.0,3952.1,3949.3,1.00719998]
[1734026578987,0.8476,3952.0,3949.3,1.00719998]
[1734026579171,0.8476,3952.0,3949.3,0.13983014]
[1734026579370,0.8476,3952.0,3949.2,0.12837499]
[1734026579711,0.8476,3952.0,3948.4,0.0253178]
[1734026579916,0.8476,3952.0,3948.7,0.35407337]
[1734026580222,0.8476,3952.0,3948.8,0.55]
[1734026580386,0.8667,3951.8,3948.4,0.12800734]
[1734026580720,0.55,3951.4,3948.5,0.25817338]
[1734026580885,0.55,3951.4,3948.3,0.1638739]
[1734026581084,4.05313853,3952.0,3948.3,0.1638739]
[1734026581085,0.55,3951.2,3948.3,0.1638739]
[1734026581287,0.8667,3951.1,3948.4,0.8803]
[1734026581510,0.8667,3951.1,3948.5,0.38336973]
[1734026581820,0.8667,3951.1,3948.5,0.7396731]
[1734026581972,0.8667,3951.1,3948.6,0.1783847]
[1734026582168,0.8667,3951.1,3948.7,0.38336973]
[1734026582374,0.8667,3950.9,3948.7,0.38336973]
[1734026584071,0.8667,3950.9,3948.7,0.40869408]
[1734026584428,0.8667,3950.9,3948.7,0.38336973]
[1734026585690,0.8728,3950.7,3948.6,0.1783847]
[1734026586059,0.55,3950.8,3948.6,0.56175443]
[1734026586209,0.55,3951.0,3948.7,0.14420544]
[1734026586549,0.55,3950.6,3948.7,0.14420544]
[1734026586701,0.8547,3950.5,3948.7,0.14420544]
[1734026587309,0.55,3950.2,3948.4,0.8803]
[1734026587612,0.55,3950.2,3948.3,0.1638739]
[1734026587613,0.8547,3950.1,3948.3,0.1638739]
[1734026589146,0.8547,3950.1,3948.4,0.38336973]
[1734026589308,0.8547,3950.1,3948.3,0.1638739]
[1734026589706,0.8547,3950.1,3948.3,1.0775739]
[1734026592948,0.8547,3950.1,3948.3,1.22366826]
[1734026593150,0.8547,3950.1,3948.3,1.0775739]
[1734026594515,0.8547,3950.1,3948.4,0.57532135]
[1734026594722,0.25,3952.1,3948.4,0.57532135]
[1734026594723,0.23233715,3951.3,3948.6,0.55]
[1734026594943,0.8565,3951.2,3949.1,0.8371]
[1734026595146,0.8565,3951.2,3949.2,1.3871]
[1734026595453,0.8565,3951.2,3949.4,0.55]
[1734026595875,0.8565,3951.2,3949.6,0.55]
[1734026597758,0.8565,3951.2,3949.5,0.8371]
[1734026597963,0.8565,3951.2,3949.6,0.55]
[1734026599520,0.8565,3951.2,3949.5,0.8371]
[1734026601088,0.8565,3951.2,3949.6,0.55]
[1734026601267,0.8565,3951.2,3949.7,0.13871]
[1734026602368,0.8565,3951.2,3949.5,0.8371]
[1734026602579,0.8565,3951.2,3949.1,0.8501]
[1734026603372,0.8476,3951.1,3949.1,0.8501]
[1734026603549,0.8476,3951.1,3948.8,0.8371]
[1734026604278,3.0,3951.2,3948.8,0.8371]
[1734026604451,0.9141,3951.1,3948.8,0.8371]
[1734026606876,0.9141,3951.1,3948.9,0.9077]
[1734026607074,0.9141,3951.1,3949.0,0.69577]
[1734026607384,0.9141,3951.1,3949.2,0.55]
[1734026609381,0.9141,3951.1,3949.1,0.896]
[1734026610491,0.9662,3950.7,3948.8,1.001]
[1734026612265,0.25,3951.8,3948.3,0.1638739]
[1734026612266,0.55,3950.4,3948.3,0.1638739]
[1734026612486,0.9812,3950.3,3948.3,0.1638739]
[1734026612696,0.9812,3950.1,3948.3,0.1638739]
[1734026614210,3.0,3950.1,3948.3,0.1638739]
[1734026614499,5.63624552,3950.5,3948.3,0.1638739]
[1734026614500,0.9791,3949.9,3948.3,0.1638739]
[1734026616006,2.63624552,3949.7,3948.3,0.1638739]
[1734026616318,0.9606,3948.8,3948.3,0.1638739]
[1734026616520,3.9606,3948.8,3948.3,0.1638739]
[1734026617385,3.0,3948.8,3948.3,0.1638739]
[1734026617592,0.9606,3948.7,3948.3,0.1638739]
[1734026619117,0.9606,3949.1,3948.3,0.1638739]
[1734026620029,0.968,3950.1,3948.3,0.1638739]
[1734026622689,1.0345,3949.9,3948.3,0.1638739]
[1734026623717,1.0345,3949.9,3948.4,1.0166]
[1734026624923,1.0345,3949.9,3948.3,0.1638739]
[1734026624924,3.24701091,3949.9,3948.3,0.1638739]
[1734026625099,0.9344,3949.2,3948.3,0.1638739]
[1734026626290,1.78863407,3949.2,3948.3,0.1638739]
[1734026626524,0.9344,3949.2,3948.3,0.1638739]
[1734026626700,3.0,3949.1,3948.3,0.1638739]
[1734026626888,3.9344,3949.2,3948.3,0.1638739]
[1734026627083,0.9344,3949.2,3948.3,0.1638739]
[1734026629838,0.9344,3949.2,3948.3,1.1929739]
[1734026630037,3.0,3949.8,3948.3,1.1929739]
[1734026630038,1.0314,3949.6,3948.3,1.1929739]
[1734026630550,1.04098291,3950.0,3948.3,1.1929739]
[1734026630551,1.0314,3950.0,3948.3,1.1929739]
[1734026630689,1.0314,3950.4,3948.3,1.1929739]
[1734026632231,1.0314,3950.4,3948.5,0.9818]
[1734026632403,1.0314,3950.4,3948.4,0.55]
[1734026632404,0.9965,3950.9,3948.7,0.9818]
[1734026633029,0.85331844,3950.8,3948.7,0.9818]
[1734026633239,4.05434644,3950.8,3948.7,0.9818]
[1734026633397,0.85331023,3950.7,3948.7,0.9818]
[1734026633733,3.85331023,3950.7,3948.7,0.9818]
[1734026633931,0.9965,3950.9,3948.7,0.9818]
[1734026634293,3.12963385,3950.9,3948.7,0.9818]
[1734026634626,0.85325446,3950.8,3948.7,1.15193674]
[1734026634829,4.9076009,3950.8,3948.7,1.15193674]
[1734026635039,5.13317914,3950.7,3948.7,0.9818]
[1734026635197,0.85325446,3950.6,3948.7,0.9818]
[1734026635392,4.27995659,3950.7,3948.7,0.9818]
[1734026635646,0.85330434,3950.6,3948.7,0.9818]
[1734026635806,1.2799503,3950.7,3948.7,0.9818]
[1734026636007,5.13324916,3950.7,3948.7,0.9818]
[1734026636236,0.85329886,3950.6,3948.7,0.9818]
[1734026636443,4.27994891,3950.7,3948.7,0.9818]
[1734026636611,0.85329914,3950.6,3948.7,0.9818]
[1734026636796,1.05434644,3950.8,3948.7,0.9818]
[1734026637141,3.0,3950.7,3948.7,0.9818]
[1734026637437,1.05434644,3950.8,3948.7,0.9818]
[1734026637639,3.0,3950.7,3948.7,0.9818]
[1734026637813,4.05434644,3950.8,3948.7,0.9818]
[1734026638008,5.13322971,3950.7,3948.7,0.9818]
[1734026638211,0.8532923,3950.6,3948.7,0.9818]
[1734026638412,4.27994541,3950.7,3948.7,0.9818]
[1734026638614,0.85329837,3950.6,3948.7,1.13498]
[1734026638816,4.27994714,3950.7,3948.7,1.13498]
[1734026639129,0.85329883,3950.6,3948.7,1.13498]
[1734026639446,1.05434644,3950.8,3948.7,1.13498]
[1734026639747,3.0,3950.7,3948.7,1.13498]
[1734026640045,3.0,3950.8,3948.7,1.13498]
[1734026640259,2.05084644,3950.9,3948.7,1.13498]
[1734026640403,1.05434644,3951.2,3948.8,1.0283]
[1734026640597,3.0,3951.1,3948.8,1.0283]
[1734026640798,2.02584644,3951.3,3948.8,1.0283]
[1734026641094,2.02584644,3951.3,3948.7,0.15318]
[1734026641095,0.9715,3951.3,3949.2,1.0331]
[1734026641793,1.05434644,3951.5,3949.2,1.0331]
[1734026642236,1.05434644,3951.3,3949.2,1.0331]
[1734026642741,3.0,3951.2,3949.2,1.0331]
[1734026642917,1.05434644,3951.3,3949.2,1.0331]
[1734026643112,1.90774582,3951.3,3949.2,1.0331]
[1734026643413,3.0,3951.2,3949.2,1.19141]
[1734026643630,0.85357378,3951.1,3949.2,1.19141]
[1734026643947,3.0,3951.2,3949.2,1.19141]
[1734026644243,0.85361771,3951.1,3949.2,1.19141]
[1734026644453,4.05434644,3951.2,3949.2,1.19141]
[1734026644754,0.85384794,3951.1,3949.2,1.19141]
[1734026644903,1.28074849,3951.2,3949.2,1.19141]
[1734026645104,0.85383336,3951.1,3949.2,1.19141]
[1734026645667,1.05434644,3951.6,3949.4,0.9607]
[1734026645968,1.05434644,3952.1,3950.1,0.55]
[1734026646107,1.05434644,3952.1,3949.5,1.62237466]
[1734026646108,1.05434644,3952.1,3950.2,0.9607]
[1734026646733,0.85383235,3952.0,3950.2,0.9607]
[1734026647045,1.05434644,3952.4,3950.5,0.55]
[1734026647356,1.05434644,3952.8,3950.6,0.9607]
[1734026647661,3.48919595,3952.8,3950.6,1.11177]
[1734026647948,2.13365136,3952.7,3950.6,1.11177]
[1734026648252,3.1879978,3952.7,3950.6,1.11177]
[1734026648409,5.13365136,3952.7,3950.6,1.11177]
[1734026648614,0.85318161,3952.6,3950.6,1.11177]
[1734026649009,2.1329743,3952.6,3950.6,1.11177]
[1734026649209,3.0,3952.5,3950.6,0.9607]
[1734026649458,3.0,3951.9,3950.6,0.9607]
[1734026650125,2.56961966,3952.3,3950.6,0.9607]
[1734026650126,5.04244644,3952.3,3950.6,0.9607]
[1734026650331,3.9881,3952.3,3950.6,0.9607]
[1734026650719,1.05434644,3952.6,3950.6,0.9607]
[1734026650910,0.85292104,3952.5,3950.6,0.9607]
[1734026651118,1.0154,3952.8,3950.6,0.9607]
[1734026651628,0.8525968,3952.7,3950.6,0.9607]
[1734026651962,1.0154,3952.8,3950.6,0.9607]
[1734026653870,1.27819848,3953.1,3950.2,1.0045]
[1734026654050,2.00504644,3953.2,3950.2,1.0045]
[1734026654051,3.9507,3953.2,3950.5,0.55]
[1734026654398,3.9507,3953.2,3950.8,1.0045]
[1734026655471,3.0,3953.0,3950.8,1.0045]
[1734026655777,3.0,3952.5,3950.8,1.0045]
[1734026655980,1.0016,3952.4,3950.8,1.0045]
[1734026656318,3.0,3952.5,3950.8,1.0045]
[1734026656906,1.0016,3952.8,3950.8,1.0045]
[1734026658184,3.0,3952.5,3950.8,1.0045]
[1734026658312,4.0016,3952.5,3950.8,1.0045]
[1734026661133,0.55,3950.1,3948.7,0.2369437]
[1734026661330,1.0229,3950.0,3948.7,0.2369437]
[1734026661853,3.0,3950.5,3948.7,0.2369437]
[1734026662224,3.0,3950.5,3948.8,0.9358]
[1734026663459,3.0,3950.7,3948.8,0.9358]
[1734026663617,1.40061553,3950.6,3948.8,0.9358]
[1734026663824,0.85062309,3950.5,3948.8,0.9358]
[1734026664063,3.0,3950.5,3948.8,0.9358]
[1734026664258,3.0,3950.3,3948.8,0.9358]
[1734026664428,3.0,3950.1,3948.8,0.9358]
[1734026665322,3.0,3950.2,3948.8,0.9358]
[1734026665528,2.5317,3950.0,3948.8,0.9358]
[1734026665767,3.0,3949.9,3948.8,0.9358]
[1734026665968,3.0,3949.9,3948.4,0.9505]
[1734026665969,4.2298722,3949.8,3948.4,0.9505]
[1734026666271,5.53183,3949.7,3948.4,0.9505]
[1734026666560,3.0,3949.5,3948.4,0.9505]
[1734026666749,3.0,3949.7,3948.4,0.9505]
[1734026668236,2.07134644,3950.5,3948.4,0.9505]
[1734026668438,3.8505827,3950.4,3948.4,0.9505]
[1734026668647,4.017,3950.5,3948.4,0.9505]
[1734026668831,3.58561644,3950.6,3948.4,0.9505]
[1734026668832,1.05434644,3950.6,3948.4,0.9505]
[1734026669163,2.07134644,3951.0,3948.5,1.0187]
[1734026669332,3.2460722,3950.7,3948.5,1.0187]
[1734026670250,3.0,3950.6,3948.5,1.0187]
[1734026671160,3.0,3950.1,3948.5,1.0187]
[1734026671586,3.0,3949.7,3948.5,1.0187]
[1734026676384,3.0,3949.2,3948.5,1.0187]
[1734026687083,4.2246722,3950.2,3948.5,1.0187]
[1734026687358,2.6376876,3950.2,3948.5,1.0187]
[1734026688155,2.6376876,3949.8,3948.5,1.0187]
[1734026688396,2.6376876,3949.4,3948.5,1.0187]
[1734026688770,3.0,3949.3,3948.5,1.0187]
[1734026689496,3.0,3949.5,3948.5,1.0187]
[1734026690458,4.30203354,3950.5,3948.5,1.0187]
[1734026690654,3.0,3950.4,3948.5,1.0187]
[1734026690888,3.0,3950.4,3948.7,0.9968]
[1734026692295,0.55,3950.3,3948.7,0.9968]
[1734026693428,0.55,3949.8,3948.7,0.9968]
[1734026695775,3.0,3949.9,3948.7,0.9968]
[1734026698886,3.0,3950.4,3948.7,0.9968]
[1734026699989,3.2476871,3950.5,3948.7,0.9968]
[1734026700680,4.30203354,3951.0,3948.7,0.9968]
[1734026700884,3.2476871,3951.0,3948.8,1.0251]
[1734026701215,3.2476871,3951.0,3948.7,0.62309642]
[1734026701216,3.2476871,3951.0,3949.0,1.0251]
[1734026701612,0.85243439,3950.9,3949.0,1.0251]
[1734026701811,3.2476871,3951.0,3949.0,1.0251]
[1734026702321,3.85243351,3950.9,3949.0,1.0251]
[1734026702541,3.2476871,3950.5,3949.0,1.0251]
[1734026702816,3.0,3950.4,3949.0,1.0251]
[1734026703736,4.30203354,3950.5,3949.0,1.0251]
[1734026703737,1.05434644,3950.5,3949.0,1.0251]
[1734026703879,1.58151966,3950.7,3949.0,1.0251]
[1734026703880,4.05434644,3950.7,3949.0,1.0251]
[1734026704076,2.13367827,3950.6,3949.0,1.0251]
[1734026704536,3.0,3950.5,3949.0,1.0251]
[1734026704691,0.85347131,3950.4,3949.0,1.0251]
[1734026704891,1.05434644,3950.3,3949.0,1.0251]
[1734026705105,4.05434644,3950.3,3949.0,1.0251]
[1734026705306,3.18870048,3950.2,3949.0,1.0251]
[1734026705623,1.05434644,3949.8,3949.0,1.0251]
[1734026705855,1.90781775,3949.7,3949.0,1.0251]
[1734026705996,6.18870048,3949.6,3949.0,1.0251]
[1734026706335,5.13435404,3949.5,3949.0,1.0251]
[1734026706535,3.19093288,3949.4,3949.0,1.0251]
[1734026706826,2.13658644,3949.3,3949.0,1.0251]
[1734026707165,1.05434644,3949.4,3949.0,1.0251]
[1734026707450,4.05434644,3949.4,3949.0,1.0251]
[1734026707743,2.13852028,3949.3,3949.0,1.0251]
[1734026707941,1.28311518,3949.3,3949.0,1.0251]
[1734026708157,0.8554211,3949.2,3949.0,1.0251]
[1734026708298,1.05434644,3949.3,3949.0,1.0251]
[1734026708652,1.05434644,3949.1,3949.0,1.0251]
[1734026708998,5.13860296,3949.1,3948.4,1.0166]
[1734026709198,6.19716098,3949.0,3948.4,1.0166]
[1734026709431,5.13860296,3948.9,3948.4,1.0166]
[1734026709605,1.05855802,3949.0,3948.4,1.0166]
[1734026709806,3.0,3948.9,3948.4,1.0166]
[1734026710009,1.05855802,3949.0,3948.4,1.0166]
[1734026710207,3.0,3948.9,3948.4,1.0166]
[1734026710529,1.05855802,3949.0,3948.4,1.0166]
[1734026710843,3.19739815,3949.0,3948.4,1.0166]